[Event "EYCC Open-U16 2019"]
[Site "Bratislava"]
[Date "2019.08.09"]
[Round "8.35"]
[White "Antal, Jakub"]
[Black "Melaa, Sondre"]
[Result "0-1"]
[ECO "C55"]
[WhiteElo "1963"]
[BlackElo "2118"]
[Annotator "NA"]
[PlyCount "50"]
[EventDate "2019.08.02"]
[EventType "swiss"]
[EventCountry "SVK"]
[SourceTitle "playchess.com"]
[Source "ChessBase"]
[SourceQuality "1"]
[TimeControl "40/5400+30:1800+30"]

1. e4 {[%emt 0:00:00]} e5 {[%emt 0:00:00]} 2. Nf3 {[%emt 0:00:03]} Nc6 {[%emt 0:00:00]} 3. Bc4 {[%emt 0:01:05]} Nf6 {[%emt 0:00:00]} 4. d3 {[%emt 0:00:13]} Be7 {[%emt 0:00:07]} 5. O-O {[%emt 0:00:47]} O-O {[%emt 0:00:12]} 6. Re1 {[%emt 0:01:16]} d6 {[%emt 0:00:09]} 7. c3 {[%emt 0:00:15]} Na5 {[%emt 0:00:23]} 8. Bb5 {[%emt 0:06:07]} a6 {[%emt 0:00:34]} 9. Ba4 {[%emt 0:00:06]} c5 {[%emt 0:00:05]} 10. c4 {[%emt 0:12:44]} Nc6 {[%emt 0:07:50]} 11. h3 {[%emt 0:08:00]} Ne8 {[%emt 0:06:17]} 12. Nc3 {[%emt 0:22:18]} Rb8 {[%emt 0:08:53]} 13. Nh2 {[%emt 0:08:20]} Nc7 {[%emt 0:04:59]} 14. Bc2 {[%emt 0:12:17]} b5 {[%emt 0:02:54]} 15. b3 {[%emt 0:02:58]} f5 {[%emt 0:07:03]} 16. exf5 {[%emt 0:10:40]} Bxf5 {[%emt 0:00:24]} 17. Be3 {[%emt 0:01:49]} Ne6 {[%emt 0:04:05]} 18. Qd2 {[%emt 0:00:25]} Ncd4 {[%emt 0:04:01]} 19. Bd1 {[%emt 0:01:59]} Qe8 {[%emt 0:03:23]} 20. Bg4 {[%emt 0:02:47]} Qg6 {[%emt 0:07:15]} 21. Nd5 {[%emt 0:01:36]} Bh4 {[%emt 0:01:55]} 22. Kh1 {[%emt 0:03:55]} Bxd3 {[%emt 0:04:10]} 23. Bxe6+ {[%emt 0:00:14]} Nxe6 {[%emt 0:00:31]} 24. Nf3 {[%emt 0:00:39]} Bd8 {[%emt 0:01:25]} 25. Bxc5 {[%emt 0:01:08]} Nxc5 {[%emt 0:02:06]} 0-1

[Event "EYCC Open-U16 2019"]
[Site "Bratislava"]
[Date "2019.08.09"]
[Round "8.36"]
[White "Ghachava, Akaki"]
[Black "Iliaguev, Daniel"]
[Result "1/2-1/2"]
[ECO "C60"]
[WhiteElo "1777"]
[BlackElo "2053"]
[Annotator "NA"]
[PlyCount "84"]
[EventDate "2019.08.02"]
[EventType "swiss"]
[EventCountry "SVK"]
[SourceTitle "playchess.com"]
[Source "ChessBase"]
[SourceQuality "1"]
[TimeControl "40/5400+30:1800+30"]

1. e4 e5 {[%emt 0:00:43]} 2. Nf3 {[%emt 0:01:09]} Nc6 {[%emt 0:00:04]} 3. Bb5 {[%emt 0:00:07]} g6 {[%emt 0:00:20]} 4. c3 {[%emt 0:00:04]} a6 {[%emt 0:00:03]} 5. Ba4 {[%emt 0:01:33]} Nge7 {[%emt 0:00:02]} 6. O-O {[%emt 0:00:07]} Bg7 {[%emt 0:09:19]} 7. d4 {[%emt 0:00:06]} exd4 {[%emt 0:01:05]} 8. cxd4 {[%emt 0:00:05]} d5 {[%emt 0:02:54]} 9. exd5 {[%emt 0:03:17]} Nxd5 {[%emt 0:00:57]} 10. Re1+ {[%emt 0:05:14]} Be6 {[%emt 0:01:17]} 11. Ne5 {[%emt 0:06:22]} O-O {[%emt 0:12:27]} 12. Bxc6 {[%emt 0:10:10]} bxc6 {[%emt 0:00:37]} 13. Nxc6 {[%emt 0:00:05]} Qd6 {[%emt 0:02:20]} 14. Ne5 {[%emt 0:02:48]} Rfd8 {[%emt 0:01:07]} 15. Qe2 {[%emt 0:11:46]} Nb4 {[%emt 0:22:19]} 16. a3 {[%emt 0:03:29]} Bxe5 {[%emt 0:04:17]} 17. dxe5 {[%emt 0:02:38]} Qd3 {[%emt 0:00:02]} 18. Qxd3 {[%emt 0:01:17]} Nxd3 {[%emt 0:00:02]} 19. Rf1 {[%emt 0:00:08]} Nxe5 {[%emt 0:03:37]} 20. Bf4 {[%emt 0:06:11]} Nd3 {[%emt 0:00:21]} 21. Bxc7 {[%emt 0:00:07]} Rd7 {[%emt 0:04:19]} 22. Bg3 {[%emt 0:00:32]} Nxb2 {[%emt 0:00:09]} 23. Nc3 {[%emt 0:00:29]} Bf5 {[%emt 0:00:31]} 24. h3 {[%emt 0:03:24]} f6 {[%emt 0:08:35]} 25. Rfe1 {[%emt 0:01:10]} Nd3 {[%emt 0:06:12]} 26. Re3 {[%emt 0:01:47]} Nc5 {[%emt 0:01:45]} 27. Rc1 {[%emt 0:04:41]} Rad8 {[%emt 0:01:08]} 28. Kh2 {[%emt 0:06:09]} Rd3 {[%emt 0:04:46]} 29. Rce1 {[%emt 0:02:31]} Rxe3 {[%emt 0:00:56]} 30. Rxe3 {[%emt 0:00:04]} Kf7 {[%emt 0:00:23]} 31. Bc7 {[%emt 0:02:30]} Rc8 {[%emt 0:06:37]} 32. Bd6 {[%emt 0:01:51]} Be6 {[%emt 0:00:18]} 33. Ne4 {[%emt 0:01:13]} Nxe4 {[%emt 0:01:00]} 34. Rxe4 {[%emt 0:00:08]} Rc2 {[%emt 0:00:44]} 35. Kg3 {[%emt 0:00:08]} g5 {[%emt 0:00:55]} 36. Rb4 {[%emt 0:01:24]} Rc6 {[%emt 0:03:32]} 37. Rb7+ {[%emt 0:00:46]} Kg6 {[%emt 0:00:02]} 38. Bf8 {[%emt 0:00:37]} Bf7 {[%emt 0:00:24]} 39. h4 {[%emt 0:00:31]} h5 {[%emt 0:00:56]} 40. hxg5 {[%emt 0:00:00]} fxg5 {[%emt 0:00:00]} 41. Rd7 {[%emt 0:01:06]} Be6 {[%emt 0:14:58]} 42. Rd6 {[%emt 0:00:18]} Rxd6 {[%emt 0:00:08]} 1/2-1/2

[Event "EYCC Open-U16 2019"]
[Site "Bratislava"]
[Date "2019.08.09"]
[Round "8.37"]
[White "Ghazaryan, Raffi"]
[Black "Stankovic, Milos M"]
[Result "1-0"]
[ECO "B54"]
[WhiteElo "1826"]
[BlackElo "2270"]
[Annotator "NA"]
[PlyCount "131"]
[EventDate "2019.08.02"]
[EventType "swiss"]
[EventCountry "SVK"]
[SourceTitle "playchess.com"]
[Source "ChessBase"]
[SourceQuality "1"]
[TimeControl "40/5400+30:1800+30"]

1. e4 {[%emt 0:00:00]} c5 {[%emt 0:00:00]} 2. Nf3 {[%emt 0:00:00]} d6 {[%emt 0:00:00]} 3. d4 {[%emt 0:00:00]} cxd4 {[%emt 0:00:00]} 4. Nxd4 {[%emt 0:00:00]} Nf6 {[%emt 0:00:00]} 5. f3 {[%emt 0:00:00]} a6 {[%emt 0:00:34]} 6. c4 {[%emt 0:00:06]} e6 {[%emt 0:01:42]} 7. Nc3 {[%emt 0:02:13]} Nbd7 {[%emt 0:00:46]} 8. Be3 {[%emt 0:00:11]} Qc7 {[%emt 0:01:07]} 9. Be2 {[%emt 0:00:36]} Be7 {[%emt 0:03:41]} 10. O-O {[%emt 0:00:09]} b6 {[%emt 0:00:49]} 11. Qd2 {[%emt 0:00:14]} Bb7 {[%emt 0:00:08]} 12. Rfc1 {[%emt 0:00:51]} O-O {[%emt 0:02:14]} 13. Rab1 {[%emt 0:01:57]} Rac8 {[%emt 0:03:23]} 14. b4 {[%emt 0:01:32]} Rfd8 {[%emt 0:03:25]} 15. Qe1 {[%emt 0:08:18]} Bf8 {[%emt 0:25:44]} 16. Qf2 {[%emt 0:02:22]} Rb8 {[%emt 0:05:05]} 17. a4 {[%emt 0:08:16]} Ba8 {[%emt 0:01:33]} 18. Nb3 {[%emt 0:06:53]} Ne5 {[%emt 0:08:22]} 19. Bd4 {[%emt 0:14:07]} Nc6 {[%emt 0:07:42]} 20. Nd5 {[%emt 0:01:00]} exd5 {[%emt 0:21:24]} 21. cxd5 {[%emt 0:00:09]} Qd7 {[%emt 0:00:40]} 22. dxc6 {[%emt 0:02:17]} Bxc6 {[%emt 0:00:07]} 23. Bxb6 {[%emt 0:03:31]} Re8 {[%emt 0:00:05]} 24. a5 {[%emt 0:01:38]} d5 {[%emt 0:03:40]} 25. Nd4 {[%emt 0:00:21]} Bb7 {[%emt 0:00:57]} 26. e5 {[%emt 0:00:25]} Rxe5 {[%emt 0:02:20]} 27. Bc7 {[%emt 0:00:01]} Rxe2 {[%emt 0:00:49]} 28. Nxe2 {[%emt 0:03:21]} Re8 {[%emt 0:01:18]} 29. Bg3 {[%emt 0:02:07]} Bc8 {[%emt 0:01:55]} 30. Nd4 {[%emt 0:03:11]} Nh5 {[%emt 0:00:45]} 31. Re1 {[%emt 0:01:34]} Nxg3 {[%emt 0:02:05]} 32. Rxe8 {[%emt 0:00:33]} Qxe8 {[%emt 0:00:06]} 33. hxg3 {[%emt 0:01:02]} Bd6 {[%emt 0:00:21]} 34. Re1 {[%emt 0:01:26]} Be6 {[%emt 0:02:12]} 35. Nxe6 {[%emt 0:00:35]} fxe6 {[%emt 0:00:06]} 36. Qb6 {[%emt 0:01:13]} Qd7 {[%emt 0:00:30]} 37. Qxa6 {[%emt 0:02:34]} Bxb4 {[%emt 0:00:19]} 38. Qxe6+ {[%emt 0:01:31]} Qxe6 {[%emt 0:00:02]} 39. Rxe6 {[%emt 0:00:08]} Bxa5 {[%emt 0:00:02]} 40. Kf1 {[%emt 0:00:00]} d4 {[%emt 0:00:00]} 41. Ke2 {[%emt 0:00:18]} Bc7 {[%emt 0:01:12]} 42. g4 {[%emt 0:03:18]} Kf7 {[%emt 0:01:14]} 43. Rc6 {[%emt 0:01:29]} Be5 {[%emt 0:00:10]} 44. Kd3 {[%emt 0:00:05]} h6 {[%emt 0:00:09]} 45. Ke4 {[%emt 0:00:10]} Bf6 {[%emt 0:00:24]} 46. f4 {[%emt 0:00:14]} Ke7 {[%emt 0:00:32]} 47. Ra6 {[%emt 0:00:45]} Kf7 {[%emt 0:00:33]} 48. Kf5 {[%emt 0:04:41]} g6+ {[%emt 0:04:19]} 49. Ke4 {[%emt 0:01:01]} Ke7 {[%emt 0:00:02]} 50. Ra7+ {[%emt 0:00:32]} Kf8 {[%emt 0:00:35]} 51. Ra6 {[%emt 0:02:30]} Ke7 {[%emt 0:00:11]} 52. f5 {[%emt 0:04:45]} gxf5+ {[%emt 0:00:11]} 53. gxf5 {[%emt 0:00:25]} Kf7 {[%emt 0:00:51]} 54. Ra7+ {[%emt 0:00:29]} Kg8 {[%emt 0:00:19]} 55. g4 {[%emt 0:00:08]} Kf8 {[%emt 0:02:42]} 56. Kd5 {[%emt 0:01:06]} d3 {[%emt 0:00:06]} 57. Ke6 {[%emt 0:00:35]} Bc3 {[%emt 0:00:02]} 58. f6 {[%emt 0:00:40]} Kg8 {[%emt 0:00:05]} 59. Rd7 {[%emt 0:02:37]} d2 {[%emt 0:00:19]} 60. f7+ {[%emt 0:01:00]} Kg7 {[%emt 0:00:11]} 61. Ke7 {[%emt 0:00:44]} Bb4+ {[%emt 0:00:03]} 62. Ke8 {[%emt 0:00:06]} Kg6 {[%emt 0:00:16]} 63. Rxd2 {[%emt 0:00:21]} Bxd2 {[%emt 0:00:07]} 64. f8=Q {[%emt 0:00:02]} Kg5 {[%emt 0:00:16]} 65. Qf5+ {[%emt 0:00:08]} Kh4 {[%emt 0:00:05]} 66. Qf2+ 1-0

[Event "EYCC Open-U16 2019"]
[Site "Bratislava"]
[Date "2019.08.09"]
[Round "8.38"]
[White "Redzisz, Michal"]
[Black "Carlsson, Ludvig"]
[Result "1-0"]
[ECO "A46"]
[WhiteElo "2054"]
[BlackElo "2218"]
[Annotator "NA"]
[PlyCount "101"]
[EventDate "2019.08.02"]
[EventType "swiss"]
[EventCountry "SVK"]
[SourceTitle "playchess.com"]
[Source "ChessBase"]
[SourceQuality "1"]
[TimeControl "40/5400+30:1800+30"]

1. d4 {[%emt 0:00:00]} Nf6 {[%emt 0:01:00]} 2. Nf3 {[%emt 0:00:00]} d5 {[%emt 0:00:34]} 3. g3 {[%emt 0:00:00]} c5 {[%emt 0:00:36]} 4. Bg2 {[%emt 0:03:09]} cxd4 {[%emt 0:00:40]} 5. Nxd4 {[%emt 0:00:08]} e5 {[%emt 0:00:10]} 6. Nb3 {[%emt 0:00:33]} Be6 {[%emt 0:00:31]} 7. O-O {[%emt 0:02:03]} Be7 {[%emt 0:01:44]} 8. Bg5 {[%emt 0:15:18]} Nbd7 {[%emt 0:00:16]} 9. Qd3 {[%emt 0:07:09]} h6 {[%emt 0:03:35]} 10. Bxf6 {[%emt 0:00:01]} Nxf6 {[%emt 0:00:10]} 11. Rd1 {[%emt 0:08:59]} Qd7 {[%emt 0:04:03]} 12. Nc3 {[%emt 0:04:10]} Rd8 {[%emt 0:00:17]} 13. Qe3 {[%emt 0:05:51]} d4 {[%emt 0:03:32]} 14. Qxe5 {[%emt 0:02:06]} dxc3 {[%emt 0:00:06]} 15. Rxd7 {[%emt 0:00:35]} Rxd7 {[%emt 0:00:08]} 16. Qxc3 {[%emt 0:01:17]} O-O {[%emt 0:00:09]} 17. e3 {[%emt 0:03:03]} Nd5 {[%emt 0:01:50]} 18. Bxd5 {[%emt 0:05:18]} Rxd5 {[%emt 0:01:21]} 19. Nd4 {[%emt 0:01:14]} Rc8 {[%emt 0:00:07]} 20. Qd2 {[%emt 0:00:40]} h5 {[%emt 0:02:24]} 21. Qe2 {[%emt 0:11:10]} Bg4 {[%emt 0:01:20]} 22. f3 {[%emt 0:00:30]} Bh3 {[%emt 0:00:12]} 23. c3 {[%emt 0:01:36]} Bc5 {[%emt 0:00:50]} 24. Rd1 {[%emt 0:02:27]} Re8 {[%emt 0:01:32]} 25. e4 {[%emt 0:01:59]} Rde5 {[%emt 0:00:18]} 26. Kf2 {[%emt 0:10:30]} b5 {[%emt 0:01:40]} 27. Ke3 {[%emt 0:05:59]} f5 {[%emt 0:02:44]} 28. Kd3 {[%emt 0:02:45]} fxe4+ {[%emt 0:01:33]} 29. fxe4 {[%emt 0:00:50]} Bg4 {[%emt 0:04:26]} 30. Qd2 {[%emt 0:00:58]} Bxd1 {[%emt 0:00:41]} 31. Qxd1 {[%emt 0:00:02]} Rxe4 {[%emt 0:01:36]} 32. Qxh5 {[%emt 0:00:47]} R8e5 {[%emt 0:00:19]} 33. Qf3 {[%emt 0:01:47]} Re1 {[%emt 0:00:24]} 34. a3 {[%emt 0:02:34]} Kh7 {[%emt 0:13:47]} 35. h4 {[%emt 0:00:58]} a5 {[%emt 0:03:14]} 36. b4 {[%emt 0:00:51]} Bxd4 {[%emt 0:01:17]} 37. cxd4 {[%emt 0:00:12]} Ra1 {[%emt 0:00:05]} 38. Kc2 {[%emt 0:00:55]} Ra2+ {[%emt 0:03:28]} 39. Kb1 {[%emt 0:00:20]} Ree2 {[%emt 0:00:32]} 40. Qh5+ {[%emt 0:00:00]} Kg8 {[%emt 0:00:00]} 41. Qd5+ {[%emt 0:00:48]} Kh7 {[%emt 0:00:12]} 42. Qxa2 {[%emt 0:00:48]} Re1+ {[%emt 0:00:06]} 43. Kb2 {[%emt 0:00:04]} Re2+ {[%emt 0:00:03]} 44. Ka1 {[%emt 0:00:02]} Rxa2+ {[%emt 0:00:34]} 45. Kxa2 {[%emt 0:00:01]} a4 {[%emt 0:00:48]} 46. Kb2 {[%emt 0:00:11]} Kg6 {[%emt 0:01:39]} 47. g4 {[%emt 0:01:03]} Kf6 {[%emt 0:00:08]} 48. Kc3 {[%emt 0:00:02]} Ke6 {[%emt 0:00:16]} 49. Kd3 {[%emt 0:00:05]} Kd5 {[%emt 0:00:18]} 50. h5 {[%emt 0:00:03]} Ke6 {[%emt 0:00:06]} 51. Ke4 {[%emt 0:00:02]} 1-0

[Event "EYCC Open-U16 2019"]
[Site "Bratislava"]
[Date "2019.08.09"]
[Round "8.39"]
[White "Bin-Suhayl, Ieysaa"]
[Black "Dabic, Stjepan"]
[Result "1/2-1/2"]
[ECO "E85"]
[WhiteElo "2084"]
[BlackElo "2102"]
[Annotator "NA"]
[PlyCount "60"]
[EventDate "2019.08.02"]
[EventType "swiss"]
[EventCountry "SVK"]
[SourceTitle "playchess.com"]
[Source "ChessBase"]
[SourceQuality "1"]
[TimeControl "40/5400+30:1800+30"]

1. d4 {[%emt 0:00:00]} Nf6 {[%emt 0:00:00]} 2. c4 {[%emt 0:00:00]} g6 {[%emt 0:00:05]} 3. Nc3 {[%emt 0:00:00]} Bg7 {[%emt 0:00:13]} 4. e4 {[%emt 0:00:00]} d6 {[%emt 0:00:11]} 5. f3 {[%emt 0:00:00]} O-O {[%emt 0:00:26]} 6. Be3 {[%emt 0:00:00]} e5 {[%emt 0:00:20]} 7. Nge2 {[%emt 0:00:02]} Nbd7 {[%emt 0:00:24]} 8. Qd2 {[%emt 0:00:33]} a6 {[%emt 0:00:28]} 9. d5 {[%emt 0:01:52]} h5 {[%emt 0:00:09]} 10. Nc1 {[%emt 0:01:32]} Nh7 {[%emt 0:00:17]} 11. Be2 {[%emt 0:02:27]} f5 {[%emt 0:01:02]} 12. exf5 {[%emt 0:01:14]} gxf5 {[%emt 0:00:08]} 13. O-O {[%emt 0:00:15]} Ndf6 {[%emt 0:07:21]} 14. c5 {[%emt 0:02:06]} Bd7 {[%emt 0:11:01]} 15. Nb3 {[%emt 0:04:10]} f4 {[%emt 0:01:04]} 16. Bf2 {[%emt 0:00:08]} Qe8 {[%emt 0:01:26]} 17. Na5 {[%emt 0:01:08]} Rb8 {[%emt 0:05:43]} 18. cxd6 {[%emt 0:09:45]} cxd6 {[%emt 0:00:07]} 19. Bb6 {[%emt 0:00:11]} Qe7 {[%emt 0:01:46]} 20. Rac1 {[%emt 0:02:37]} h4 {[%emt 0:02:17]} 21. Ba7 {[%emt 0:02:27]} Ra8 {[%emt 0:03:37]} 22. Bf2 {[%emt 0:00:11]} h3 {[%emt 0:00:09]} 23. g3 {[%emt 0:05:08]} fxg3 {[%emt 0:12:31]} 24. hxg3 {[%emt 0:00:04]} e4 {[%emt 0:00:11]} 25. Nxb7 {[%emt 0:10:07]} exf3 {[%emt 0:02:23]} 26. Bxf3 {[%emt 0:02:09]} Bg4 {[%emt 0:00:53]} 27. Qe2 {[%emt 0:11:31]} Bxf3 {[%emt 0:08:28]} 28. Qxe7 {[%emt 0:00:58]} Ng5 {[%emt 0:00:14]} 29. Qxf6 {[%emt 0:08:56]} h2+ {[%emt 0:00:45]} 30. Kxh2 {[%emt 0:00:13]} Rxf6 {[%emt 0:00:44]} 1/2-1/2

[Event "EYCC Open-U16 2019"]
[Site "Bratislava"]
[Date "2019.08.09"]
[Round "8.40"]
[White "Novotny, Martin"]
[Black "Acimovic, Sergej"]
[Result "1-0"]
[ECO "E92"]
[WhiteElo "2178"]
[BlackElo "2016"]
[Annotator "NA"]
[PlyCount "59"]
[EventDate "2019.08.02"]
[EventType "swiss"]
[EventCountry "SVK"]
[SourceTitle "playchess.com"]
[Source "ChessBase"]
[SourceQuality "1"]
[TimeControl "40/5400+30:1800+30"]

1. d4 {[%emt 0:00:00]} Nf6 {[%emt 0:00:00]} 2. c4 {[%emt 0:00:00]} g6 {[%emt 0:00:07]} 3. Nc3 {[%emt 0:00:00]} Bg7 {[%emt 0:00:17]} 4. e4 {[%emt 0:00:09]} d6 {[%emt 0:00:17]} 5. Nf3 {[%emt 0:00:14]} O-O {[%emt 0:00:34]} 6. Be2 {[%emt 0:00:12]} e5 {[%emt 0:00:19]} 7. d5 {[%emt 0:01:36]} a5 {[%emt 0:01:15]} 8. Bg5 {[%emt 0:00:53]} Na6 {[%emt 0:01:33]} 9. Nd2 {[%emt 0:02:38]} h6 {[%emt 0:06:38]} 10. Be3 {[%emt 0:01:22]} Nc5 {[%emt 0:02:21]} 11. g4 {[%emt 0:17:55]} Ne8 {[%emt 0:11:11]} 12. h4 {[%emt 0:07:33]} f5 {[%emt 0:04:31]} 13. h5 {[%emt 0:03:35]} f4 {[%emt 0:09:50]} 14. Bxc5 {[%emt 0:00:14]} dxc5 {[%emt 0:00:06]} 15. hxg6 {[%emt 0:05:35]} Nd6 {[%emt 0:12:14]} 16. Qc2 {[%emt 0:06:02]} Rf6 {[%emt 0:04:06]} 17. O-O-O {[%emt 0:20:05]} Rxg6 {[%emt 0:03:06]} 18. Rdg1 {[%emt 0:01:50]} Bd7 {[%emt 0:04:47]} 19. Nf3 {[%emt 0:06:39]} Bf6 {[%emt 0:10:47]} 20. g5 {[%emt 0:05:46]} hxg5 {[%emt 0:01:04]} 21. Nh4 {[%emt 0:00:18]} Rg7 {[%emt 0:02:29]} 22. Nf5 {[%emt 0:00:13]} Bxf5 {[%emt 0:00:23]} 23. exf5 {[%emt 0:00:07]} Qd7 {[%emt 0:05:31]} 24. Rh6 {[%emt 0:03:11]} Kf7 {[%emt 0:03:29]} 25. Ne4 {[%emt 0:02:53]} Nxe4 {[%emt 0:00:28]} 26. Qxe4 {[%emt 0:00:05]} Rf8 {[%emt 0:02:39]} 27. Rgh1 {[%emt 0:02:51]} Ke8 {[%emt 0:02:31]} 28. Bg4 {[%emt 0:08:23]} Kd8 {[%emt 0:01:07]} 29. Rxf6 {[%emt 0:01:04]} Rxf6 {[%emt 0:01:16]} 30. Rh8+ {[%emt 0:00:05]} 1-0

[Event "EYCC Open-U16 2019"]
[Site "Bratislava"]
[Date "2019.08.09"]
[Round "8.41"]
[White "Zetocha, Adrian"]
[Black "Karadzhov, Ivan"]
[Result "0-1"]
[ECO "D45"]
[WhiteElo "2193"]
[BlackElo "2023"]
[Annotator "NA"]
[PlyCount "110"]
[EventDate "2019.08.02"]
[EventType "swiss"]
[EventCountry "SVK"]
[SourceTitle "playchess.com"]
[Source "ChessBase"]
[SourceQuality "1"]
[TimeControl "40/5400+30:1800+30"]

1. d4 {[%emt 0:00:00]} d5 {[%emt 0:00:03]} 2. c4 {[%emt 0:00:00]} c6 {[%emt 0:00:17]} 3. e3 {[%emt 0:00:13]} Nf6 {[%emt 0:00:42]} 4. Nc3 {[%emt 0:00:19]} e6 {[%emt 0:02:02]} 5. Nf3 {[%emt 0:00:57]} Bd6 {[%emt 0:00:23]} 6. Qc2 {[%emt 0:00:39]} O-O {[%emt 0:01:09]} 7. Bd3 {[%emt 0:00:28]} Nbd7 {[%emt 0:08:26]} 8. O-O {[%emt 0:01:22]} dxc4 {[%emt 0:01:21]} 9. Bxc4 {[%emt 0:00:16]} e5 {[%emt 0:00:56]} 10. Rd1 {[%emt 0:06:04]} Qe7 {[%emt 0:03:11]} 11. e4 {[%emt 0:06:44]} exd4 {[%emt 0:04:28]} 12. Nxd4 {[%emt 0:00:19]} Ne5 {[%emt 0:06:48]} 13. Be2 {[%emt 0:02:12]} Ng6 {[%emt 0:01:52]} 14. Nf5 {[%emt 0:07:15]} Bxf5 {[%emt 0:01:30]} 15. exf5 {[%emt 0:00:11]} Nf4 {[%emt 0:02:24]} 16. Bf3 {[%emt 0:02:31]} N4d5 {[%emt 0:16:51]} 17. g3 {[%emt 0:18:23]} Nxc3 {[%emt 0:03:52]} 18. bxc3 {[%emt 0:01:11]} Rfe8 {[%emt 0:07:25]} 19. Rb1 {[%emt 0:00:58]} Bc5 {[%emt 0:14:24]} 20. Bg5 {[%emt 0:22:16]} Bb6 {[%emt 0:04:02]} 21. Rb4 {[%emt 0:01:37]} Rad8 {[%emt 0:05:55]} 22. Rdb1 {[%emt 0:04:48]} Qc5 {[%emt 0:03:18]} 23. Kg2 {[%emt 0:04:31]} h6 {[%emt 0:03:06]} 24. Bxf6 {[%emt 0:00:54]} gxf6 {[%emt 0:00:07]} 25. Rh4 {[%emt 0:00:29]} Kh7 {[%emt 0:00:57]} 26. Rbb4 {[%emt 0:01:09]} Rg8 {[%emt 0:01:41]} 27. Rbc4 {[%emt 0:03:57]} Qd6 {[%emt 0:00:24]} 28. Bh5 {[%emt 0:03:50]} Rgf8 {[%emt 0:03:23]} 29. Rcf4 {[%emt 0:04:31]} Qd2 {[%emt 0:01:15]} 30. Qa4 {[%emt 0:00:20]} Qxc3 {[%emt 0:01:52]} 31. Qe4 {[%emt 0:04:10]} Qe5 {[%emt 0:00:14]} 32. Qf3 {[%emt 0:00:12]} Rd2 {[%emt 0:00:35]} 33. Qb3 {[%emt 0:02:26]} Qd5+ {[%emt 0:00:11]} 34. Qxd5 {[%emt 0:00:13]} cxd5 {[%emt 0:00:07]} 35. a3 {[%emt 0:01:28]} Rc8 {[%emt 0:01:06]} 36. Bxf7 {[%emt 0:00:25]} Kg7 {[%emt 0:00:17]} 37. Be6 {[%emt 0:00:16]} Rcc2 {[%emt 0:00:05]} 38. Rhg4+ {[%emt 0:00:11]} Kf8 {[%emt 0:00:10]} 39. Rg6 {[%emt 0:00:58]} Rxf2+ {[%emt 0:00:13]} 40. Rxf2 {[%emt 0:00:00]} Rxf2+ {[%emt 0:00:00]} 41. Kh3 {[%emt 0:04:32]} d4 {[%emt 0:11:47]} 42. Rxf6+ {[%emt 0:02:22]} Ke7 {[%emt 0:00:50]} 43. Rxh6 {[%emt 0:01:06]} d3 {[%emt 0:00:56]} 44. Rh7+ {[%emt 0:00:31]} Kf6 {[%emt 0:00:10]} 45. Rd7 {[%emt 0:00:25]} d2 {[%emt 0:00:46]} 46. g4 {[%emt 0:02:01]} Bc7 {[%emt 0:00:57]} 47. g5+ {[%emt 0:04:23]} Kxg5 {[%emt 0:00:38]} 48. Rg7+ {[%emt 0:00:28]} Kf6 {[%emt 0:04:09]} 49. Rd7 {[%emt 0:00:13]} Rxh2+ {[%emt 0:01:14]} 50. Kg4 {[%emt 0:00:14]} Ke5 {[%emt 0:05:09]} 51. Rd5+ {[%emt 0:01:21]} Kf6 {[%emt 0:03:17]} 52. Kf3 {[%emt 0:01:04]} Rh3+ {[%emt 0:01:14]} 53. Ke2 {[%emt 0:00:12]} Bf4 {[%emt 0:00:19]} 54. a4 {[%emt 0:01:36]} Re3+ {[%emt 0:00:23]} 55. Kd1 {[%emt 0:00:31]} Re1+ {[%emt 0:00:09]} 0-1